[Event "African-ch Women 2019"]
[Site "Hammamet"]
[Date "2019.07.14"]
[Round "6.3"]
[White "Miladi, Amen"]
[Black "Moaataz, Ayah"]
[Result "0-1"]
[ECO "B19"]
[WhiteElo "1777"]
[BlackElo "2031"]
[Annotator "NA"]
[PlyCount "176"]
[EventDate "2019.07.09"]
[EventType "swiss"]
[EventCountry "TUN"]
[SourceTitle "playchess.com"]
[Source "ChessBase"]
[SourceQuality "1"]
[TimeControl "5400+30"]

1. e4 {[%emt 0:06:41]} c6 {[%emt 0:00:00]} 2. d4 {[%emt 0:00:17]} d5 {[%emt 0:00:00]} 3. Nc3 {[%emt 0:00:07]} dxe4 {[%emt 0:00:00]} 4. Nxe4 {[%emt 0:00:07]} Bf5 {[%emt 0:00:00]} 5. Ng3 {[%emt 0:00:05]} Bg6 {[%emt 0:00:03]} 6. h4 {[%emt 0:00:06]} h6 {[%emt 0:00:04]} 7. Nf3 {[%emt 0:00:05]} Nd7 {[%emt 0:00:09]} 8. h5 {[%emt 0:00:05]} Bh7 {[%emt 0:00:04]} 9. Bd3 {[%emt 0:00:12]} Bxd3 {[%emt 0:00:06]} 10. Qxd3 {[%emt 0:00:05]} e6 {[%emt 0:00:35]} 11. Bd2 {[%emt 0:00:08]} Qc7 {[%emt 0:00:47]} 12. O-O-O {[%emt 0:00:13]} Ngf6 {[%emt 0:00:19]} 13. Nf1 {[%emt 0:02:02]} O-O-O {[%emt 0:01:37]} 14. Ne3 {[%emt 0:00:16]} Kb8 {[%emt 0:08:09]} 15. Nc4 {[%emt 0:03:38]} Nc5 {[%emt 0:08:46]} 16. Qe2 {[%emt 0:04:06]} Nce4 {[%emt 0:00:29]} 17. Be3 {[%emt 0:14:42]} Ng4 {[%emt 0:17:03]} 18. Nfe5 {[%emt 0:03:07]} Nxe3 {[%emt 0:02:01]} 19. Qxe3 {[%emt 0:00:08]} Nf6 {[%emt 0:01:55]} 20. Qg3 {[%emt 0:00:57]} Ka8 {[%emt 0:03:40]} 21. Kb1 {[%emt 0:03:56]} Rg8 {[%emt 0:02:49]} 22. c3 {[%emt 0:05:32]} Nd5 {[%emt 0:11:13]} 23. Qf3 {[%emt 0:02:14]} f6 {[%emt 0:01:50]} 24. Ng6 {[%emt 0:01:04]} Bd6 {[%emt 0:01:14]} 25. Rhe1 {[%emt 0:02:00]} Rge8 {[%emt 0:01:23]} 26. Nxd6 {[%emt 0:05:23]} Qxd6 {[%emt 0:01:02]} 27. c4 {[%emt 0:00:39]} Nc7 {[%emt 0:00:53]} 28. g3 {[%emt 0:02:36]} Qd7 {[%emt 0:01:03]} 29. Qc3 {[%emt 0:06:52]} Kb8 {[%emt 0:02:38]} 30. Nf4 {[%emt 0:02:35]} Qf7 {[%emt 0:04:27]} 31. Ng6 {[%emt 0:01:35]} Rd7 {[%emt 0:00:46]} 32. f4 {[%emt 0:06:12]} Red8 {[%emt 0:01:05]} 33. Kc1 {[%emt 0:00:53]} Rd6 {[%emt 0:03:18]} 34. Rd2 {[%emt 0:10:56]} Qd7 {[%emt 0:08:44]} 35. Red1 {[%emt 0:00:33]} Rc8 {[%emt 0:02:52]} 36. Kb1 {[%emt 0:01:16]} Qf7 {[%emt 0:02:17]} 37. Rd3 {[%emt 0:05:16]} Rd7 {[%emt 0:01:06]} 38. Qa5 {[%emt 0:01:45]} Rcd8 {[%emt 0:03:39]} 39. Ra3 {[%emt 0:00:56]} Na6 {[%emt 0:05:35]} 40. Rb3 {[%emt 0:00:00]} Kc8 {[%emt 0:00:00]} 41. Rbd3 {[%emt 0:00:00]} Kb8 {[%emt 0:00:00]} 42. Rb3 {[%emt 0:00:00]} Ka8 {[%emt 0:00:00]} 43. Rbd3 {[%emt 0:00:00]} Rd6 {[%emt 0:00:00]} 44. Qc3 {[%emt 0:00:00]} Nc7 {[%emt 0:00:00]} 45. R3d2 {[%emt 0:00:00]} Ne8 {[%emt 0:00:00]} 46. Re1 {[%emt 0:00:00]} R6d7 {[%emt 0:00:00]} 47. Rde2 {[%emt 0:00:00]} Nc7 {[%emt 0:00:00]} 48. Rd2 {[%emt 0:00:00]} b6 {[%emt 0:00:00]} 49. b4 {[%emt 0:00:00]} Kb7 {[%emt 0:00:00]} 50. Red1 {[%emt 0:00:00]} b5 {[%emt 0:00:00]} 51. Rc1 {[%emt 0:02:13]} bxc4 {[%emt 0:00:00]} 52. Qxc4 {[%emt 0:00:07]} Rd6 {[%emt 0:00:00]} 53. f5 {[%emt 0:00:11]} Qe8 {[%emt 0:00:00]} 54. fxe6 {[%emt 0:02:13]} Qxe6 {[%emt 0:00:00]} 55. Kb2 {[%emt 0:05:55]} Qe4 {[%emt 0:01:29]} 56. a3 {[%emt 0:05:06]} Rxd4 {[%emt 0:00:39]} 57. Rxd4 {[%emt 0:00:12]} Rxd4 {[%emt 0:02:56]} 58. Qc2 {[%emt 0:01:11]} Qxc2+ {[%emt 0:04:29]} 59. Rxc2 {[%emt 0:00:08]} Nd5 {[%emt 0:00:35]} 60. Nf8 {[%emt 0:01:14]} Rd3 {[%emt 0:00:40]} 61. Rg2 {[%emt 0:00:15]} Ne3 {[%emt 0:00:37]} 62. Rg1 {[%emt 0:00:09]} Nc4+ {[%emt 0:00:27]} 63. Kc2 {[%emt 0:00:11]} Rxa3 {[%emt 0:00:39]} 64. Ne6 {[%emt 0:00:06]} Ne5 {[%emt 0:00:50]} 65. Nxg7 {[%emt 0:00:14]} Ng4 {[%emt 0:00:31]} 66. Nf5 {[%emt 0:00:30]} Rf3 {[%emt 0:00:34]} 67. Nd4 {[%emt 0:00:20]} Rf2+ {[%emt 0:00:26]} 68. Kb3 {[%emt 0:00:21]} Rd2 {[%emt 0:00:24]} 69. Kc4 {[%emt 0:00:46]} Rh2 {[%emt 0:00:35]} 70. b5 {[%emt 0:00:34]} cxb5+ {[%emt 0:00:33]} 71. Nxb5 {[%emt 0:00:05]} Rxh5 {[%emt 0:00:56]} 72. Ra1 {[%emt 0:00:16]} Ne3+ {[%emt 0:01:08]} 73. Kd3 {[%emt 0:00:27]} Rxb5 {[%emt 0:00:07]} 74. Kxe3 {[%emt 0:00:01]} a5 {[%emt 0:00:21]} 75. Rh1 {[%emt 0:00:14]} h5 {[%emt 0:00:26]} 76. Rf1 {[%emt 0:00:06]} a4 {[%emt 0:00:45]} 77. Rxf6 {[%emt 0:00:22]} a3 {[%emt 0:00:15]} 78. Rf1 {[%emt 0:00:11]} a2 {[%emt 0:00:22]} 79. Ra1 {[%emt 0:00:06]} Ra5 {[%emt 0:00:04]} 80. Kd2 {[%emt 0:00:27]} Kc6 {[%emt 0:00:08]} 81. Kc2 {[%emt 0:00:11]} Kd5 {[%emt 0:00:26]} 82. Kb2 {[%emt 0:00:31]} Ke4 {[%emt 0:00:07]} 83. Re1+ {[%emt 0:00:38]} Kf3 {[%emt 0:00:06]} 84. Ka1 {[%emt 0:00:21]} Kxg3 {[%emt 0:00:24]} 85. Re8 {[%emt 0:00:16]} h4 {[%emt 0:00:11]} 86. Rg8+ {[%emt 0:00:09]} Kh2 {[%emt 0:00:06]} 87. Rg6 {[%emt 0:00:32]} h3 {[%emt 0:00:19]} 88. Rg7 {[%emt 0:00:07]} Ra3 {[%emt 0:00:16]} 0-1

[Event "African-ch Women 2019"]
[Site "Hammamet"]
[Date "2019.07.14"]
[Round "6.4"]
[White "Mezioud, Amina"]
[Black "Marzouk, Amira"]
[Result "1-0"]
[ECO "B70"]
[WhiteElo "2128"]
[BlackElo "1667"]
[Annotator "NA"]
[PlyCount "61"]
[EventDate "2019.07.09"]
[EventType "swiss"]
[EventCountry "TUN"]
[SourceTitle "playchess.com"]
[Source "ChessBase"]
[SourceQuality "1"]
[TimeControl "5400+30"]

1. e4 {[%emt 0:00:49]} c5 {[%emt 0:00:00]} 2. Nf3 {[%emt 0:00:08]} d6 {[%emt 0:00:00]} 3. d4 {[%emt 0:00:06]} cxd4 {[%emt 0:00:07]} 4. Nxd4 {[%emt 0:00:08]} Nf6 {[%emt 0:00:13]} 5. Nc3 {[%emt 0:00:06]} g6 {[%emt 0:00:17]} 6. Be2 {[%emt 0:00:09]} Bg7 {[%emt 0:00:20]} 7. O-O {[%emt 0:00:34]} O-O {[%emt 0:00:36]} 8. Bg5 {[%emt 0:00:08]} Nc6 {[%emt 0:01:06]} 9. Nb3 {[%emt 0:00:08]} a6 {[%emt 0:01:17]} 10. f4 {[%emt 0:04:44]} b5 {[%emt 0:04:13]} 11. Bf3 {[%emt 0:02:56]} Bb7 {[%emt 0:03:50]} 12. Kh1 {[%emt 0:03:03]} Qc7 {[%emt 0:04:53]} 13. Nd5 {[%emt 0:04:52]} Nxd5 {[%emt 0:17:13]} 14. exd5 {[%emt 0:00:10]} Na5 {[%emt 0:00:29]} 15. Nxa5 {[%emt 0:07:33]} Qxa5 {[%emt 0:00:06]} 16. c3 {[%emt 0:00:27]} Rfe8 {[%emt 0:04:07]} 17. Re1 {[%emt 0:00:44]} Kf8 {[%emt 0:00:41]} 18. Re3 {[%emt 0:05:06]} b4 {[%emt 0:10:38]} 19. cxb4 {[%emt 0:05:11]} Qb6 {[%emt 0:01:47]} 20. Qe2 {[%emt 0:03:09]} e5 {[%emt 0:14:43]} 21. dxe6 {[%emt 0:02:38]} Bxf3 {[%emt 0:00:31]} 22. e7+ {[%emt 0:01:22]} Kg8 {[%emt 0:00:10]} 23. Qxf3 {[%emt 0:00:16]} Rac8 {[%emt 0:03:32]} 24. f5 {[%emt 0:06:09]} Bxb2 {[%emt 0:02:27]} 25. fxg6 {[%emt 0:01:15]} hxg6 {[%emt 0:01:18]} 26. Rf1 {[%emt 0:00:26]} f6 {[%emt 0:02:53]} 27. Bh4 {[%emt 0:04:29]} g5 {[%emt 0:05:51]} 28. Bxg5 {[%emt 0:05:57]} Rc1 {[%emt 0:08:45]} 29. Qd5+ {[%emt 0:14:27]} Kg7 {[%emt 0:08:18]} 30. Bxf6+ {[%emt 0:00:28]} Bxf6 {[%emt 0:00:14]} 31. Rg3+ {[%emt 0:00:58]} 1-0

[Event "African-ch Women 2019"]
[Site "Hammamet"]
[Date "2019.07.14"]
[Round "6.5"]
[White "Nassr, Lina"]
[Black "February, Jesse Nikki"]
[Result "1-0"]
[ECO "A35"]
[WhiteElo "1982"]
[BlackElo "1888"]
[Annotator "NA"]
[PlyCount "55"]
[EventDate "2019.07.09"]
[EventType "swiss"]
[EventCountry "TUN"]
[SourceTitle "playchess.com"]
[Source "ChessBase"]
[SourceQuality "1"]
[TimeControl "5400+30"]

1. c4 {[%emt 0:00:00]} e5 {[%emt 0:00:32]} 2. e3 {[%emt 0:00:34]} c5 {[%emt 0:02:19]} 3. Nc3 {[%emt 0:02:05]} Nc6 {[%emt 0:00:38]} 4. Nf3 {[%emt 0:01:20]} g6 {[%emt 0:02:24]} 5. d4 {[%emt 0:02:41]} exd4 {[%emt 0:11:18]} 6. exd4 {[%emt 0:01:28]} Bg7 {[%emt 0:08:14]} 7. dxc5 {[%emt 0:16:08]} Qa5 {[%emt 0:05:19]} 8. Bd2 {[%emt 0:04:10]} Qxc5 {[%emt 0:03:56]} 9. Bd3 {[%emt 0:03:12]} Nf6 {[%emt 0:05:03]} 10. O-O {[%emt 0:01:58]} O-O {[%emt 0:00:38]} 11. Be3 {[%emt 0:03:22]} Qh5 {[%emt 0:04:09]} 12. Be2 {[%emt 0:04:58]} Ng4 {[%emt 0:05:13]} 13. Bf4 {[%emt 0:02:03]} d6 {[%emt 0:14:01]} 14. h3 {[%emt 0:08:15]} f5 {[%emt 0:12:03]} 15. Qd5+ {[%emt 0:13:27]} Kh8 {[%emt 0:00:32]} 16. Ng5 {[%emt 0:04:38]} h6 {[%emt 0:07:15]} 17. Nf7+ {[%emt 0:02:58]} Kh7 {[%emt 0:00:35]} 18. Nxd6 {[%emt 0:04:06]} g5 {[%emt 0:04:28]} 19. hxg4 {[%emt 0:01:42]} fxg4 {[%emt 0:00:52]} 20. Bg3 {[%emt 0:00:43]} Nd4 {[%emt 0:00:55]} 21. Bd3+ {[%emt 0:06:38]} Kh8 {[%emt 0:00:43]} 22. Qe4 {[%emt 0:02:10]} Bf5 {[%emt 0:00:52]} 23. Nxf5 {[%emt 0:00:53]} Rxf5 {[%emt 0:01:27]} 24. Rfe1 {[%emt 0:03:11]} Raf8 {[%emt 0:01:33]} 25. Nd5 {[%emt 0:02:54]} a6 {[%emt 0:05:45]} 26. Ne7 {[%emt 0:01:38]} Nf3+ {[%emt 0:00:38]} 27. gxf3 {[%emt 0:01:23]} gxf3 {[%emt 0:00:07]} 28. Nxf5 {[%emt 0:00:53]} 1-0

[Event "African-ch Women 2019"]
[Site "Hammamet"]
[Date "2019.07.16"]
[Round "7.1"]
[White "Mezioud, Amina"]
[Black "Wafa, Shrook"]
[Result "1/2-1/2"]
[ECO "B31"]
[WhiteElo "2128"]
[BlackElo "2144"]
[Annotator "ChessBase"]
[PlyCount "163"]
[EventDate "2019.07.09"]
[EventType "swiss"]
[EventCountry "TUN"]
[TimeControl "5400+30"]

1. e4 {[%emt 0:00:44]} c5 {[%emt 0:00:00]} 2. Nf3 {[%emt 0:00:05]} Nc6 {[%emt 0:00:00]} 3. Bb5 {[%emt 0:00:06]} g6 {[%emt 0:00:04]} 4. O-O {[%emt 0:00:06]} Bg7 {[%emt 0:00:08]} 5. c3 {[%emt 0:00:11]} Nf6 {[%emt 0:00:56]} 6. e5 {[%emt 0:00:29]} Nd5 {[%emt 0:00:12]} 7. d4 {[%emt 0:00:15]} cxd4 {[%emt 0:00:29]} 8. cxd4 {[%emt 0:00:19]} O-O {[%emt 0:02:37]} 9. Nc3 {[%emt 0:03:38]} Nxc3 {[%emt 0:02:12]} 10. bxc3 {[%emt 0:00:02]} d6 {[%emt 0:00:15]} 11. exd6 {[%emt 0:04:39]} Qxd6 {[%emt 0:00:16]} 12. Qa4 {[%emt 0:01:41]} Bg4 {[%emt 0:05:13]} 13. Nd2 {[%emt 0:09:07]} a6 {[%emt 0:03:23]} 14. Bxc6 {[%emt 0:03:10]} Qxc6 {[%emt 0:00:09]} 15. Qxc6 {[%emt 0:00:22]} bxc6 {[%emt 0:00:06]} 16. Ba3 {[%emt 0:02:03]} Rfe8 {[%emt 0:00:28]} 17. h3 {[%emt 0:05:30]} Bf5 {[%emt 0:01:09]} 18. f4 {[%emt 0:01:40]} h5 {[%emt 0:04:12]} 19. Rae1 {[%emt 0:05:36]} Be6 {[%emt 0:08:34]} 20. Nb3 {[%emt 0:01:12]} Bf6 {[%emt 0:07:22]} 21. Kh2 {[%emt 0:01:23]} Rab8 {[%emt 0:06:40]} 22. Rb1 {[%emt 0:07:54]} Rb5 {[%emt 0:01:44]} 23. Bb4 {[%emt 0:02:39]} Bc4 {[%emt 0:11:21]} 24. Rfe1 {[%emt 0:02:53]} Rf5 {[%emt 0:03:40]} 25. Bd6 {[%emt 0:08:35]} h4 {[%emt 0:01:59]} 26. Rb2 {[%emt 0:05:33]} Kf8 {[%emt 0:05:07]} 27. Be5 {[%emt 0:03:17]} Bxe5 {[%emt 0:00:20]} 28. fxe5 {[%emt 0:00:07]} Rb8 {[%emt 0:01:17]} 29. Rc2 {[%emt 0:01:38]} Bxb3 {[%emt 0:03:54]} 30. Rb2 {[%emt 0:06:49]} f6 {[%emt 0:01:02]} 31. axb3 {[%emt 0:01:23]} fxe5 {[%emt 0:00:21]} 32. dxe5 {[%emt 0:01:03]} Kf7 {[%emt 0:00:48]} 33. Re4 {[%emt 0:01:14]} g5 {[%emt 0:01:05]} 34. Rc4 {[%emt 0:05:29]} Rb6 {[%emt 0:04:03]} 35. Rc5 {[%emt 0:00:07]} Ke6 {[%emt 0:00:12]} 36. Re2 {[%emt 0:00:28]} Rxb3 {[%emt 0:00:40]} 37. Rxc6+ {[%emt 0:00:07]} Kf7 {[%emt 0:10:28]} 38. c4 {[%emt 0:00:47]} Rf1 {[%emt 0:00:46]} 39. Rxa6 {[%emt 0:10:11]} Rbb1 {[%emt 0:00:15]} 40. g4 {[%emt 0:00:00]} Rh1+ {[%emt 0:00:00]} 41. Kg2 {[%emt 0:00:00]} Rbg1+ {[%emt 0:00:00]} 42. Kf3 {[%emt 0:00:00]} Rxh3+ {[%emt 0:00:00]} 43. Ke4 {[%emt 0:00:00]} Rf1 {[%emt 0:00:00]} 44. e6+ {[%emt 0:00:00]} Kf6 {[%emt 0:00:00]} 45. Ra8 {[%emt 0:00:00]} Rf4+ {[%emt 0:00:00]} 46. Kd5 {[%emt 0:00:00]} Rd3+ {[%emt 0:00:00]} 47. Kc5 {[%emt 0:00:00]} Rxg4 {[%emt 0:00:00]} 48. Rf8+ {[%emt 0:00:00]} Kg6 {[%emt 0:00:00]} 49. Rf7 {[%emt 0:00:00]} Rc3 {[%emt 0:00:00]} 50. Rxe7 {[%emt 0:00:00]} Rgxc4+ {[%emt 0:00:00]} 51. Kd5 {[%emt 0:00:00]} Rc5+ {[%emt 0:00:00]} 52. Kd4 {[%emt 0:00:11]} R3c4+ {[%emt 0:00:00]} 53. Kd3 {[%emt 0:00:05]} Rc3+ {[%emt 0:00:00]} 54. Kd4 {[%emt 0:00:05]} Rc2 {[%emt 0:00:00]} 55. Re1 {[%emt 0:00:45]} R2c4+ {[%emt 0:00:00]} 56. Kd3 {[%emt 0:00:05]} Rc1 {[%emt 0:00:00]} 57. Re4 {[%emt 0:04:58]} R1c3+ {[%emt 0:00:00]} 58. Kd2 {[%emt 0:00:32]} R3c4 {[%emt 0:00:00]} 59. Re3 {[%emt 0:01:09]} Rc2+ {[%emt 0:00:00]} 60. Ke1 {[%emt 0:01:14]} Rc1+ {[%emt 0:00:00]} 61. Kf2 {[%emt 0:00:26]} R5c2+ {[%emt 0:00:00]} 62. Kf3 {[%emt 0:00:00]} Rc3 {[%emt 0:00:00]} 63. Rxc3 {[%emt 0:00:48]} Rxc3+ {[%emt 0:00:00]} 64. Kf2 {[%emt 0:00:51]} Kf6 {[%emt 0:00:00]} 65. Re8 {[%emt 0:00:01]} Rc5 {[%emt 0:00:00]} 66. Kf3 {[%emt 0:00:21]} Re5 {[%emt 0:00:00]} 67. Kg4 {[%emt 0:01:29]} Rxe6 {[%emt 0:01:51]} 68. Rf8+ {[%emt 0:00:05]} Kg7 {[%emt 0:00:43]} 69. Rc8 {[%emt 0:00:28]} Re5 {[%emt 0:00:46]} 70. Rc6 {[%emt 0:00:47]} Kf7 {[%emt 0:00:39]} 71. Rc7+ {[%emt 0:01:20]} Ke6 {[%emt 0:00:35]} 72. Ra7 {[%emt 0:00:18]} Kd5 {[%emt 0:00:50]} 73. Ra5+ {[%emt 0:00:22]} Kd4 {[%emt 0:00:40]} 74. Ra3 {[%emt 0:00:52]} Ke4 {[%emt 0:00:44]} 75. Rb3 {[%emt 0:00:36]} Rd5 {[%emt 0:00:19]} 76. Ra3 {[%emt 0:00:27]} Rd3 {[%emt 0:00:54]} 77. Ra4+ {[%emt 0:00:07]} Ke3 {[%emt 0:01:51]} 78. Kxg5 {[%emt 0:01:35]} h3 {[%emt 0:00:10]} 79. Kg4 {[%emt 0:01:59]} h2 {[%emt 0:00:20]} 80. Ra1 {[%emt 0:00:10]} Rd8 {[%emt 0:02:09]} 81. Kh3 {[%emt 0:01:16]} Rd2 {[%emt 0:02:11]} 82. Kg3 {[%emt 0:01:12]} 1/2-1/2

[Event "African-ch Women 2019"]
[Site "Hammamet"]
[Date "2019.07.16"]
[Round "7.2"]
[White "Moaataz, Ayah"]
[Black "Latreche, Sabrina"]
[Result "0-1"]
[ECO "A29"]
[WhiteElo "2031"]
[BlackElo "2062"]
[Annotator "NA"]
[PlyCount "120"]
[EventDate "2019.07.09"]
[EventType "swiss"]
[EventCountry "TUN"]
[TimeControl "5400+30"]

1. c4 {[%emt 0:00:00]} e5 {[%emt 0:00:00]} 2. g3 {[%emt 0:00:00]} Nf6 {[%emt 0:00:02]} 3. Bg2 {[%emt 0:00:00]} d5 {[%emt 0:00:13]} 4. cxd5 {[%emt 0:00:00]} Nxd5 {[%emt 0:00:06]} 5. Nc3 {[%emt 0:00:00]} Nb6 {[%emt 0:00:09]} 6. Nf3 {[%emt 0:00:00]} Nc6 {[%emt 0:00:06]} 7. O-O {[%emt 0:00:00]} Be7 {[%emt 0:00:14]} 8. Rb1 {[%emt 0:00:11]} a5 {[%emt 0:01:15]} 9. d3 {[%emt 0:00:28]} Be6 {[%emt 0:00:49]} 10. Be3 {[%emt 0:01:36]} O-O {[%emt 0:01:52]} 11. Rc1 {[%emt 0:04:02]} Nd5 {[%emt 0:08:01]} 12. Nxd5 {[%emt 0:02:43]} Bxd5 {[%emt 0:00:14]} 13. a3 {[%emt 0:00:35]} a4 {[%emt 0:07:37]} 14. Bc5 {[%emt 0:02:39]} Bxc5 {[%emt 0:10:07]} 15. Rxc5 {[%emt 0:00:07]} Qd6 {[%emt 0:00:37]} 16. Qc1 {[%emt 0:06:51]} Rfe8 {[%emt 0:17:22]} 17. e4 {[%emt 0:10:09]} Bb3 {[%emt 0:01:33]} 18. Rc3 {[%emt 0:06:55]} Re7 {[%emt 0:06:47]} 19. Qd2 {[%emt 0:07:47]} Rd8 {[%emt 0:02:02]} 20. Rfc1 {[%emt 0:01:47]} Na7 {[%emt 0:07:22]} 21. Bf1 {[%emt 0:07:29]} b6 {[%emt 0:08:05]} 22. Re1 {[%emt 0:01:38]} Nb5 {[%emt 0:01:26]} 23. Rcc1 {[%emt 0:00:54]} c5 {[%emt 0:00:50]} 24. Qe3 {[%emt 0:01:50]} Red7 {[%emt 0:08:35]} 25. h4 {[%emt 0:04:21]} Qf6 {[%emt 0:02:35]} 26. Be2 {[%emt 0:03:16]} h6 {[%emt 0:00:42]} 27. Kg2 {[%emt 0:04:09]} Qe6 {[%emt 0:00:58]} 28. h5 {[%emt 0:02:41]} Qe7 {[%emt 0:06:41]} 29. Rh1 {[%emt 0:02:45]} f5 {[%emt 0:03:59]} 30. Rh4 {[%emt 0:03:15]} Nd4 {[%emt 0:01:03]} 31. Nxd4 {[%emt 0:03:34]} exd4 {[%emt 0:00:04]} 32. Qd2 {[%emt 0:01:58]} fxe4 {[%emt 0:01:48]} 33. dxe4 {[%emt 0:00:10]} d3 {[%emt 0:01:03]} 34. Bf3 {[%emt 0:00:40]} Rd4 {[%emt 0:01:37]} 35. Rg4 {[%emt 0:02:53]} Kh7 {[%emt 0:00:35]} 36. Re1 {[%emt 0:00:32]} Qe5 {[%emt 0:00:39]} 37. Rf4 {[%emt 0:04:00]} Be6 {[%emt 0:00:15]} 38. Re3 {[%emt 0:01:19]} Qg5 {[%emt 0:00:50]} 39. Bd1 {[%emt 0:01:04]} b5 {[%emt 0:00:28]} 40. Rh4 {[%emt 0:00:00]} Qe7 {[%emt 0:00:00]} 41. f3 {[%emt 0:00:00]} Bb3 {[%emt 0:00:00]} 42. Rh1 {[%emt 0:00:00]} Rc4 {[%emt 0:00:00]} 43. Rxd3 {[%emt 0:00:00]} Rxd3 {[%emt 0:00:00]} 44. Qxd3 {[%emt 0:00:00]} Rd4 {[%emt 0:00:00]} 45. Qe2 {[%emt 0:00:00]} Qd7 {[%emt 0:00:00]} 46. Bxb3 {[%emt 0:00:00]} Rd2 {[%emt 0:00:00]} 47. Bd1 {[%emt 0:00:00]} Rxe2+ {[%emt 0:00:00]} 48. Bxe2 {[%emt 0:00:00]} Qd2 {[%emt 0:00:00]} 49. Kf2 {[%emt 0:00:00]} Qxb2 {[%emt 0:00:00]} 50. Rd1 {[%emt 0:00:00]} c4 {[%emt 0:00:00]} 51. Rd7 {[%emt 0:00:00]} c3 {[%emt 0:00:00]} 52. e5 {[%emt 0:00:00]} c2 {[%emt 0:00:00]} 53. Bd3+ {[%emt 0:00:00]} Kg8 {[%emt 0:00:00]} 54. Rd8+ {[%emt 0:00:10]} Kf7 {[%emt 0:00:00]} 55. Bg6+ {[%emt 0:00:14]} Ke7 {[%emt 0:00:00]} 56. Re8+ {[%emt 0:00:43]} Kd7 {[%emt 0:00:00]} 57. e6+ {[%emt 0:00:25]} Kd6 {[%emt 0:00:00]} 58. Bxc2 {[%emt 0:02:09]} Qxc2+ {[%emt 0:00:00]} 59. Ke3 {[%emt 0:00:05]} Qc3+ {[%emt 0:00:00]} 60. Kf4 {[%emt 0:01:32]} Qe5+ {[%emt 0:00:00]} 0-1

[Event "African-ch Women 2019"]
[Site "Hammamet"]
[Date "2019.07.16"]
[Round "7.3"]
[White "Ofowino, Toritsemuwa"]
[Black "Nassr, Lina"]
[Result "0-1"]
[ECO "D02"]
[WhiteElo "1877"]
[BlackElo "1982"]
[Annotator "NA"]
[PlyCount "66"]
[EventDate "2019.07.09"]
[EventType "swiss"]
[EventCountry "TUN"]
[TimeControl "5400+30"]

1. d4 {[%emt 0:00:00]} Nf6 {[%emt 0:00:00]} 2. Bf4 {[%emt 0:00:00]} d5 {[%emt 0:00:05]} 3. e3 {[%emt 0:00:10]} c5 {[%emt 0:00:24]} 4. c3 {[%emt 0:00:08]} Nc6 {[%emt 0:00:15]} 5. Nd2 {[%emt 0:00:11]} e6 {[%emt 0:00:17]} 6. Ngf3 {[%emt 0:00:38]} Bd6 {[%emt 0:00:44]} 7. Bg3 {[%emt 0:00:54]} O-O {[%emt 0:00:52]} 8. Bd3 {[%emt 0:00:21]} b6 {[%emt 0:00:50]} 9. Qe2 {[%emt 0:11:23]} Bb7 {[%emt 0:05:57]} 10. dxc5 {[%emt 0:04:01]} bxc5 {[%emt 0:01:35]} 11. O-O {[%emt 0:04:53]} e5 {[%emt 0:04:02]} 12. e4 {[%emt 0:00:23]} Re8 {[%emt 0:02:57]} 13. exd5 {[%emt 0:10:50]} Nxd5 {[%emt 0:09:02]} 14. Ne4 {[%emt 0:05:19]} Qe7 {[%emt 0:12:55]} 15. Nxd6 {[%emt 0:05:18]} Qxd6 {[%emt 0:01:07]} 16. Qc2 {[%emt 0:00:13]} g6 {[%emt 0:09:36]} 17. Rad1 {[%emt 0:00:23]} Qf6 {[%emt 0:03:56]} 18. Nd2 {[%emt 0:07:15]} Rad8 {[%emt 0:02:47]} 19. Ne4 {[%emt 0:00:33]} Qe7 {[%emt 0:00:42]} 20. Qe2 {[%emt 0:13:55]} f5 {[%emt 0:07:22]} 21. Bc4 {[%emt 0:00:09]} Na5 {[%emt 0:01:30]} 22. Bxd5+ {[%emt 0:01:16]} Bxd5 {[%emt 0:00:25]} 23. Qb5 {[%emt 0:00:57]} Nb7 {[%emt 0:06:49]} 24. Nd2 {[%emt 0:01:27]} f4 {[%emt 0:01:36]} 25. c4 {[%emt 0:00:11]} Nd6 {[%emt 0:02:12]} 26. Qxc5 {[%emt 0:00:21]} Ba8 {[%emt 0:00:34]} 27. Bh4 {[%emt 0:01:45]} Qxh4 {[%emt 0:01:01]} 28. Qxa7 {[%emt 0:00:05]} Nf5 {[%emt 0:01:47]} 29. Qa3 {[%emt 0:02:47]} e4 {[%emt 0:05:54]} 30. Qb3 {[%emt 0:12:23]} e3 {[%emt 0:02:54]} 31. Nf3 {[%emt 0:00:43]} Bxf3 {[%emt 0:00:54]} 32. gxf3 {[%emt 0:00:47]} e2 {[%emt 0:00:50]} 33. c5+ {[%emt 0:00:31]} Kg7 {[%emt 0:00:47]} 0-1

[Event "African-ch Women 2019"]
[Site "Hammamet"]
[Date "2019.07.16"]
[Round "7.4"]
[White "Elansary, Eman"]
[Black "Miladi, Amen"]
[Result "1-0"]
[ECO "E76"]
[WhiteElo "1946"]
[BlackElo "1777"]
[Annotator "NA"]
[PlyCount "71"]
[EventDate "2019.07.09"]
[EventType "swiss"]
[EventCountry "TUN"]
[TimeControl "5400+30"]

1. d4 {[%emt 0:00:00]} Nf6 {[%emt 0:02:19]} 2. c4 {[%emt 0:00:03]} g6 {[%emt 0:00:07]} 3. Nc3 {[%emt 0:00:04]} Bg7 {[%emt 0:00:04]} 4. e4 {[%emt 0:00:05]} d6 {[%emt 0:00:03]} 5. f4 {[%emt 0:00:32]} O-O {[%emt 0:01:53]} 6. Nf3 {[%emt 0:00:09]} Nfd7 {[%emt 0:00:44]} 7. Be2 {[%emt 0:01:22]} e5 {[%emt 0:01:25]} 8. fxe5 {[%emt 0:00:51]} dxe5 {[%emt 0:00:07]} 9. d5 {[%emt 0:00:03]} a5 {[%emt 0:00:50]} 10. Be3 {[%emt 0:01:16]} Na6 {[%emt 0:00:21]} 11. O-O {[%emt 0:00:11]} f5 {[%emt 0:01:54]} 12. exf5 {[%emt 0:00:36]} gxf5 {[%emt 0:00:17]} 13. Kh1 {[%emt 0:08:27]} f4 {[%emt 0:02:17]} 14. Bf2 {[%emt 0:00:36]} Nac5 {[%emt 0:00:59]} 15. Nd2 {[%emt 0:01:49]} Qe7 {[%emt 0:06:57]} 16. Nde4 {[%emt 0:01:16]} Ra6 {[%emt 0:03:08]} 17. d6 {[%emt 0:03:29]} cxd6 {[%emt 0:03:24]} 18. Nd5 {[%emt 0:02:57]} Qd8 {[%emt 0:03:21]} 19. Nec3 {[%emt 0:02:44]} Kh8 {[%emt 0:13:19]} 20. Bf3 {[%emt 0:09:52]} Nb6 {[%emt 0:04:36]} 21. Qe2 {[%emt 0:04:08]} Nxd5 {[%emt 0:04:28]} 22. Bxd5 {[%emt 0:00:45]} a4 {[%emt 0:03:07]} 23. Rad1 {[%emt 0:01:06]} Qe7 {[%emt 0:06:45]} 24. Rfe1 {[%emt 0:14:57]} Bf5 {[%emt 0:09:52]} 25. Qf3 {[%emt 0:07:26]} b6 {[%emt 0:17:32]} 26. Bc6 {[%emt 0:10:13]} Qe6 {[%emt 0:04:56]} 27. h3 {[%emt 0:05:04]} a3 {[%emt 0:01:35]} 28. b4 {[%emt 0:03:49]} Nd7 {[%emt 0:03:40]} 29. Bb5 {[%emt 0:08:45]} Ra7 {[%emt 0:01:09]} 30. Ne4 {[%emt 0:00:41]} Bxe4 {[%emt 0:00:50]} 31. Qxe4 {[%emt 0:00:37]} f3 {[%emt 0:01:09]} 32. Kh2 {[%emt 0:09:17]} fxg2 {[%emt 0:00:17]} 33. Qxg2 {[%emt 0:00:11]} Rg8 {[%emt 0:01:41]} 34. Rg1 {[%emt 0:01:11]} Raa8 {[%emt 0:01:14]} 35. Qg4 {[%emt 0:01:01]} Qxg4 {[%emt 0:00:36]} 36. hxg4 {[%emt 0:00:31]} 1-0